[Event "EYCC Girls-U18 2019"]
[Site "Bratislava"]
[Date "2019.08.04"]
[Round "3.20"]
[White "Buchta, Agnieszka"]
[Black "Redondo Benavente, Ana"]
[Result "1/2-1/2"]
[ECO "C02"]
[WhiteElo "1818"]
[BlackElo "2176"]
[Annotator "NA"]
[PlyCount "103"]
[EventDate "2019.08.02"]
[EventType "swiss"]
[EventCountry "SVK"]
[SourceTitle "playchess.com"]
[Source "ChessBase"]
[SourceQuality "1"]
[TimeControl "40/5400+30:1800+30"]

1. e4 {[%emt 0:00:00]} e6 {[%emt 0:00:00]} 2. d4 {[%emt 0:00:00]} d5 {[%emt 0:00:00]} 3. e5 {[%emt 0:00:00]} c5 {[%emt 0:00:36]} 4. c3 {[%emt 0:00:08]} Qb6 {[%emt 0:01:14]} 5. Nf3 {[%emt 0:00:31]} Nc6 {[%emt 0:00:55]} 6. a3 {[%emt 0:00:22]} Nh6 {[%emt 0:00:58]} 7. b4 {[%emt 0:00:28]} cxd4 {[%emt 0:00:13]} 8. cxd4 {[%emt 0:00:05]} Nf5 {[%emt 0:00:10]} 9. Be3 {[%emt 0:01:04]} f6 {[%emt 0:01:16]} 10. exf6 {[%emt 0:09:41]} gxf6 {[%emt 0:00:52]} 11. Nc3 {[%emt 0:03:02]} Nxe3 {[%emt 0:00:39]} 12. fxe3 {[%emt 0:04:36]} Bh6 {[%emt 0:00:47]} 13. Qd3 {[%emt 0:08:56]} O-O {[%emt 0:02:53]} 14. Be2 {[%emt 0:08:53]} Ne7 {[%emt 0:04:02]} 15. O-O {[%emt 0:13:16]} e5 {[%emt 0:11:25]} 16. dxe5 {[%emt 0:16:36]} Qxe3+ {[%emt 0:04:26]} 17. Kh1 {[%emt 0:03:49]} Bf5 {[%emt 0:23:52]} 18. Qxe3 {[%emt 0:07:30]} Bxe3 {[%emt 0:00:02]} 19. Nh4 {[%emt 0:03:23]} fxe5 {[%emt 0:07:23]} 20. Nxf5 {[%emt 0:01:53]} Rxf5 {[%emt 0:07:08]} 21. Rxf5 {[%emt 0:00:23]} Nxf5 {[%emt 0:00:09]} 22. Nxd5 {[%emt 0:00:19]} Bd4 {[%emt 0:00:53]} 23. Rc1 {[%emt 0:04:12]} Nd6 {[%emt 0:05:39]} 24. Rf1 {[%emt 0:06:00]} Ne4 {[%emt 0:07:09]} 25. g3 {[%emt 0:02:19]} Rf8 {[%emt 0:06:38]} 26. Ne7+ {[%emt 0:02:48]} Kg7 {[%emt 0:00:02]} 27. Nf5+ {[%emt 0:00:12]} Kh8 {[%emt 0:00:50]} 28. Nxd4 {[%emt 0:02:19]} Rxf1+ {[%emt 0:00:04]} 29. Bxf1 {[%emt 0:00:02]} exd4 {[%emt 0:00:05]} 30. Kg2 {[%emt 0:00:48]} Kg7 {[%emt 0:00:03]} 31. Bd3 {[%emt 0:00:38]} Nc3 {[%emt 0:06:26]} 32. Kf3 {[%emt 0:00:55]} h6 {[%emt 0:00:02]} 33. g4 {[%emt 0:00:40]} Kf6 {[%emt 0:00:04]} 34. h4 {[%emt 0:00:25]} Ke5 {[%emt 0:08:00]} 35. g5 {[%emt 0:00:35]} hxg5 {[%emt 0:00:01]} 36. hxg5 {[%emt 0:00:00]} Nd5 {[%emt 0:01:26]} 37. g6 {[%emt 0:00:43]} Ne7 {[%emt 0:00:27]} 38. Kg4 {[%emt 0:00:50]} Kf6 {[%emt 0:00:18]} 39. Kf4 {[%emt 0:00:36]} Nxg6+ {[%emt 0:00:26]} 40. Bxg6 {[%emt 0:00:00]} Kxg6 {[%emt 0:00:00]} 41. Ke4 {[%emt 0:00:58]} d3 {[%emt 0:00:17]} 42. Kxd3 {[%emt 0:00:10]} Kf5 {[%emt 0:00:03]} 43. Kd4 {[%emt 0:02:18]} Ke6 {[%emt 0:00:19]} 44. Kc5 {[%emt 0:02:01]} Kd7 {[%emt 0:00:56]} 45. a4 {[%emt 0:07:02]} Kc7 {[%emt 0:00:12]} 46. a5 {[%emt 0:01:46]} b6+ {[%emt 0:00:12]} 47. Kb5 {[%emt 0:03:07]} bxa5 {[%emt 0:00:10]} 48. Kxa5 {[%emt 0:01:36]} Kb7 {[%emt 0:00:11]} 49. b5 {[%emt 0:00:35]} Kc7 {[%emt 0:00:13]} 50. Ka6 {[%emt 0:00:25]} Kb8 {[%emt 0:00:05]} 51. b6 {[%emt 0:00:46]} axb6 {[%emt 0:00:05]} 52. Kxb6 {[%emt 0:00:05]} 1/2-1/2

[Event "EYCC Girls-U18 2019"]
[Site "Bratislava"]
[Date "2019.08.04"]
[Round "3.21"]
[White "Silva, Ana Ines Teixeira Da"]
[Black "Hryshchenko, Kamila"]
[Result "0-1"]
[ECO "B00"]
[WhiteElo "1730"]
[BlackElo "2060"]
[Annotator "NA"]
[PlyCount "100"]
[EventDate "2019.08.02"]
[EventType "swiss"]
[EventCountry "SVK"]
[SourceTitle "playchess.com"]
[Source "ChessBase"]
[SourceQuality "1"]
[TimeControl "40/5400+30:1800+30"]

1. e4 {[%emt 0:00:00]} d6 {[%emt 0:00:00]} 2. d4 {[%emt 0:00:00]} g6 {[%emt 0:00:00]} 3. Nf3 {[%emt 0:04:11]} Bg7 {[%emt 0:00:28]} 4. Bc4 {[%emt 0:00:15]} Nf6 {[%emt 0:00:41]} 5. Qe2 {[%emt 0:00:32]} c6 {[%emt 0:13:37]} 6. Bb3 {[%emt 0:00:27]} e5 {[%emt 0:02:17]} 7. dxe5 {[%emt 0:06:39]} dxe5 {[%emt 0:00:37]} 8. O-O {[%emt 0:06:20]} Qe7 {[%emt 0:00:48]} 9. Bd2 {[%emt 0:09:52]} O-O {[%emt 0:02:04]} 10. Bc3 {[%emt 0:04:11]} Nbd7 {[%emt 0:02:02]} 11. a4 {[%emt 0:08:17]} b6 {[%emt 0:04:16]} 12. Nbd2 {[%emt 0:02:28]} Nh5 {[%emt 0:05:38]} 13. Nc4 {[%emt 0:13:21]} Nf4 {[%emt 0:01:47]} 14. Qd2 {[%emt 0:05:23]} Ba6 {[%emt 0:02:49]} 15. Rfe1 {[%emt 0:02:48]} Rad8 {[%emt 0:03:11]} 16. Qd6 {[%emt 0:13:39]} Qxd6 {[%emt 0:10:45]} 17. Nxd6 {[%emt 0:00:10]} Nc5 {[%emt 0:01:18]} 18. Nc4 {[%emt 0:01:59]} Nxb3 {[%emt 0:01:00]} 19. cxb3 {[%emt 0:00:08]} f6 {[%emt 0:00:56]} 20. a5 {[%emt 0:03:37]} b5 {[%emt 0:03:37]} 21. Ne3 {[%emt 0:00:47]} Nd3 {[%emt 0:01:45]} 22. Red1 {[%emt 0:01:57]} b4 {[%emt 0:02:00]} 23. Be1 {[%emt 0:01:07]} Rb8 {[%emt 0:00:34]} 24. Nc4 {[%emt 0:05:52]} Bxc4 {[%emt 0:01:56]} 25. bxc4 {[%emt 0:00:09]} Nxb2 {[%emt 0:01:01]} 26. Rd6 {[%emt 0:04:00]} c5 {[%emt 0:02:27]} 27. Nd2 {[%emt 0:02:39]} Rfd8 {[%emt 0:03:14]} 28. Rc6 {[%emt 0:00:27]} Rbc8 {[%emt 0:01:15]} 29. Ra6 {[%emt 0:00:59]} Rc7 {[%emt 0:00:43]} 30. Kf1 {[%emt 0:01:59]} Rd4 {[%emt 0:02:33]} 31. Rc1 {[%emt 0:00:30]} Bh6 {[%emt 0:04:56]} 32. Rc2 {[%emt 0:00:06]} Bxd2 {[%emt 0:01:12]} 33. Bxd2 {[%emt 0:00:06]} Nxc4 {[%emt 0:00:15]} 34. Bh6 {[%emt 0:00:14]} Kf7 {[%emt 0:00:38]} 35. Ke2 {[%emt 0:01:19]} g5 {[%emt 0:01:56]} 36. h4 {[%emt 0:00:10]} Rxe4+ {[%emt 0:01:32]} 37. Kd3 {[%emt 0:00:17]} Rd4+ {[%emt 0:00:08]} 38. Ke2 {[%emt 0:00:23]} Rxh4 {[%emt 0:00:13]} 39. g3 {[%emt 0:00:12]} Re4+ {[%emt 0:01:10]} 40. Kf3 {[%emt 0:00:00]} Rd4 {[%emt 0:00:00]} 41. Rc1 {[%emt 0:01:01]} b3 {[%emt 0:02:54]} 42. Rh1 {[%emt 0:01:33]} b2 {[%emt 0:03:58]} 43. Bxg5 {[%emt 0:00:39]} fxg5 {[%emt 0:05:01]} 44. Rxh7+ {[%emt 0:01:01]} Kg8 {[%emt 0:00:17]} 45. Rxc7 {[%emt 0:01:45]} b1=Q {[%emt 0:02:00]} 46. Rc8+ {[%emt 0:00:37]} Kf7 {[%emt 0:00:04]} 47. Rxa7+ {[%emt 0:00:31]} Ke6 {[%emt 0:00:33]} 48. Re8+ {[%emt 0:00:48]} Kd5 {[%emt 0:00:21]} 49. Rd7+ {[%emt 0:01:11]} Nd6 {[%emt 0:00:18]} 50. Rxd6+ {[%emt 0:01:31]} Kxd6 {[%emt 0:00:04]} 0-1

[Event "EYCC Girls-U18 2019"]
[Site "Bratislava"]
[Date "2019.08.04"]
[Round "3.22"]
[White "Moscicka, Pola"]
[Black "Smetisko, Marija"]
[Result "1/2-1/2"]
[ECO "D85"]
[WhiteElo "1870"]
[BlackElo "1814"]
[Annotator "NA"]
[PlyCount "51"]
[EventDate "2019.08.02"]
[EventType "swiss"]
[EventCountry "SVK"]
[SourceTitle "playchess.com"]
[Source "ChessBase"]
[SourceQuality "1"]
[TimeControl "40/5400+30:1800+30"]

1. d4 {[%emt 0:00:00]} Nf6 {[%emt 0:00:00]} 2. c4 g6 {[%emt 0:00:00]} 3. Nc3 {[%emt 0:00:00]} d5 {[%emt 0:01:31]} 4. cxd5 {[%emt 0:00:02]} Nxd5 {[%emt 0:00:05]} 5. e4 {[%emt 0:00:04]} Nxc3 {[%emt 0:00:53]} 6. bxc3 {[%emt 0:00:06]} Bg7 {[%emt 0:00:53]} 7. Nf3 {[%emt 0:00:07]} c5 {[%emt 0:00:22]} 8. Be3 {[%emt 0:00:06]} Nc6 {[%emt 0:02:22]} 9. Rc1 {[%emt 0:01:22]} Qa5 {[%emt 0:02:39]} 10. Qd2 {[%emt 0:00:12]} Bg4 {[%emt 0:02:10]} 11. d5 {[%emt 0:01:45]} Rd8 {[%emt 0:05:03]} 12. Be2 {[%emt 0:02:02]} b6 {[%emt 0:18:04]} 13. O-O {[%emt 0:11:05]} O-O {[%emt 0:05:59]} 14. Qb2 {[%emt 0:05:28]} Bxf3 {[%emt 0:08:32]} 15. gxf3 {[%emt 0:01:37]} Nb8 {[%emt 0:06:19]} 16. Bg5 {[%emt 0:03:08]} f6 {[%emt 0:10:40]} 17. Bd2 {[%emt 0:05:14]} f5 {[%emt 0:05:18]} 18. Qb3 {[%emt 0:01:14]} Kh8 {[%emt 0:01:57]} 19. Rfd1 {[%emt 0:06:52]} b5 {[%emt 0:08:13]} 20. Qxb5 {[%emt 0:03:06]} Qc7 {[%emt 0:00:49]} 21. Rf1 {[%emt 0:05:09]} Be5 {[%emt 0:06:43]} 22. Be3 {[%emt 0:05:54]} Bxh2+ {[%emt 0:05:03]} 23. Kg2 {[%emt 0:00:46]} Bf4 {[%emt 0:03:27]} 24. Rh1 {[%emt 0:04:56]} fxe4 {[%emt 0:01:21]} 25. fxe4 {[%emt 0:03:30]} Qe5 {[%emt 0:00:54]} 26. Qxc5 {[%emt 0:09:37]} 1/2-1/2

[Event "EYCC Girls-U18 2019"]
[Site "Bratislava"]
[Date "2019.08.04"]
[Round "3.23"]
[White "Kulpa, Zuzanna"]
[Black "Sankova, Stella"]
[Result "0-1"]
[ECO "D38"]
[WhiteElo "1802"]
[BlackElo "1997"]
[Annotator "NA"]
[PlyCount "89"]
[EventDate "2019.08.02"]
[EventType "swiss"]
[EventCountry "SVK"]
[SourceTitle "playchess.com"]
[Source "ChessBase"]
[SourceQuality "1"]
[TimeControl "40/5400+30:1800+30"]

1. d4 {[%emt 0:00:00]} Nf6 {[%emt 0:00:00]} 2. c4 {[%emt 0:00:00]} e6 {[%emt 0:00:00]} 3. Nf3 {[%emt 0:00:00]} d5 {[%emt 0:00:00]} 4. Nc3 {[%emt 0:00:00]} Bb4 {[%emt 0:00:00]} 5. cxd5 {[%emt 0:00:00]} exd5 {[%emt 0:00:00]} 6. Qa4+ {[%emt 0:00:01]} Nc6 {[%emt 0:00:03]} 7. Bg5 {[%emt 0:00:09]} Bd7 {[%emt 0:04:11]} 8. Qb3 {[%emt 0:01:28]} O-O {[%emt 0:11:45]} 9. e3 {[%emt 0:08:05]} Re8 {[%emt 0:05:45]} 10. Bxf6 {[%emt 0:11:30]} Qxf6 {[%emt 0:00:08]} 11. Qxd5 {[%emt 0:00:52]} Rad8 {[%emt 0:01:28]} 12. Be2 {[%emt 0:06:02]} Bh3 {[%emt 0:07:20]} 13. Qg5 {[%emt 0:00:12]} Qxg5 {[%emt 0:00:23]} 14. Nxg5 {[%emt 0:00:05]} Bxg2 {[%emt 0:00:13]} 15. Rg1 {[%emt 0:00:06]} Bd5 {[%emt 0:01:39]} 16. a3 {[%emt 0:02:04]} Nxd4 {[%emt 0:13:16]} 17. Bd1 {[%emt 0:18:02]} Bxc3+ {[%emt 0:03:39]} 18. bxc3 {[%emt 0:00:02]} Nb3 {[%emt 0:07:26]} 19. Rb1 {[%emt 0:01:01]} Nc5 {[%emt 0:00:04]} 20. Bc2 {[%emt 0:05:50]} h6 {[%emt 0:04:00]} 21. Nh3 {[%emt 0:00:07]} Bc4 {[%emt 0:10:30]} 22. Nf4 {[%emt 0:01:01]} Kf8 {[%emt 0:00:42]} 23. Rb4 {[%emt 0:01:44]} b5 {[%emt 0:01:20]} 24. Rb1 {[%emt 0:02:49]} a6 {[%emt 0:03:34]} 25. Ne2 {[%emt 0:02:31]} Bd3 {[%emt 0:05:53]} 26. Rc1 {[%emt 0:01:49]} Bxc2 {[%emt 0:02:53]} 27. Rxc2 {[%emt 0:00:07]} Nd3+ {[%emt 0:00:08]} 28. Kf1 {[%emt 0:00:09]} Ne5 {[%emt 0:00:19]} 29. Kg2 {[%emt 0:02:18]} Rd6 {[%emt 0:03:38]} 30. Nd4 {[%emt 0:01:52]} Red8 {[%emt 0:01:13]} 31. f4 {[%emt 0:01:44]} Nc4 {[%emt 0:00:28]} 32. Kf3 {[%emt 0:00:35]} g6 {[%emt 0:01:17]} 33. Ra1 {[%emt 0:01:23]} c5 {[%emt 0:04:04]} 34. Nb3 {[%emt 0:00:16]} Nd2+ {[%emt 0:00:10]} 35. Nxd2 {[%emt 0:00:23]} Rxd2 {[%emt 0:00:01]} 36. Raa2 {[%emt 0:01:10]} Rxc2 {[%emt 0:01:37]} 37. Rxc2 {[%emt 0:00:03]} Rd3 {[%emt 0:03:25]} 38. Ke2 {[%emt 0:08:22]} c4 {[%emt 0:00:11]} 39. a4 {[%emt 0:00:41]} bxa4 {[%emt 0:01:46]} 40. Ra2 {[%emt 0:00:00]} Rxc3 {[%emt 0:00:00]} 41. Rxa4 {[%emt 0:00:11]} Rc2+ {[%emt 0:00:18]} 42. Kd1 {[%emt 0:00:08]} Rxh2 {[%emt 0:01:02]} 43. Rxa6 {[%emt 0:00:13]} c3 {[%emt 0:00:29]} 44. Rc6 {[%emt 0:00:28]} c2+ {[%emt 0:00:13]} 45. Rxc2 {[%emt 0:01:19]} 0-1

[Event "EYCC Girls-U18 2019"]
[Site "Bratislava"]
[Date "2019.08.04"]
[Round "3.24"]
[White "Petrova, Vita"]
[Black "Duson, Robin"]
[Result "0-1"]
[ECO "A45"]
[WhiteElo "1443"]
[BlackElo "1936"]
[Annotator "NA"]
[PlyCount "84"]
[EventDate "2019.08.02"]
[EventType "swiss"]
[EventCountry "SVK"]
[SourceTitle "playchess.com"]
[Source "ChessBase"]
[SourceQuality "1"]
[TimeControl "40/5400+30:1800+30"]

1. d4 {[%emt 0:00:00]} Nf6 {[%emt 0:00:00]} 2. Bf4 {[%emt 0:00:00]} c5 {[%emt 0:00:00]} 3. e3 {[%emt 0:00:11]} Qb6 {[%emt 0:00:41]} 4. Nc3 {[%emt 0:01:49]} d6 {[%emt 0:00:46]} 5. dxc5 {[%emt 0:02:20]} Qxc5 {[%emt 0:08:01]} 6. Nf3 {[%emt 0:03:17]} g6 {[%emt 0:02:18]} 7. Be2 {[%emt 0:03:24]} Bg7 {[%emt 0:02:03]} 8. e4 {[%emt 0:05:12]} O-O {[%emt 0:13:05]} 9. O-O {[%emt 0:04:13]} Nbd7 {[%emt 0:06:47]} 10. Qd2 {[%emt 0:04:06]} Re8 {[%emt 0:08:38]} 11. Bh6 {[%emt 0:06:25]} Bh8 {[%emt 0:01:11]} 12. Ne1 {[%emt 0:10:13]} a6 {[%emt 0:04:32]} 13. Nd3 {[%emt 0:03:00]} Qa5 {[%emt 0:04:53]} 14. f4 {[%emt 0:05:26]} d5 {[%emt 0:11:00]} 15. e5 {[%emt 0:07:50]} d4 {[%emt 0:02:11]} 16. Ne4 {[%emt 0:02:37]} Qxd2 {[%emt 0:00:32]} 17. Nxd2 {[%emt 0:00:06]} Nd5 {[%emt 0:00:23]} 18. Bf3 {[%emt 0:01:40]} Ne3 {[%emt 0:01:56]} 19. Rfc1 {[%emt 0:01:22]} Nf5 {[%emt 0:02:18]} 20. Bg5 {[%emt 0:01:29]} h6 {[%emt 0:02:28]} 21. g4 {[%emt 0:00:30]} hxg5 {[%emt 0:00:37]} 22. gxf5 {[%emt 0:00:09]} gxf5 {[%emt 0:00:54]} 23. fxg5 {[%emt 0:00:49]} Nxe5 {[%emt 0:00:40]} 24. Bd5 {[%emt 0:06:29]} e6 {[%emt 0:03:02]} 25. Bg2 {[%emt 0:01:20]} Rb8 {[%emt 0:02:35]} 26. h4 {[%emt 0:03:25]} b5 {[%emt 0:01:35]} 27. Nb3 {[%emt 0:00:57]} Nc4 {[%emt 0:03:17]} 28. a4 {[%emt 0:03:16]} e5 {[%emt 0:02:27]} 29. axb5 {[%emt 0:00:31]} axb5 {[%emt 0:00:50]} 30. Na5 {[%emt 0:01:09]} e4 {[%emt 0:01:58]} 31. Nxc4 {[%emt 0:01:24]} bxc4 {[%emt 0:00:14]} 32. Nf4 {[%emt 0:01:08]} Rxb2 {[%emt 0:02:32]} 33. Ra4 {[%emt 0:00:22]} Be5 {[%emt 0:02:33]} 34. Nd5 {[%emt 0:00:58]} Be6 {[%emt 0:00:28]} 35. Ra5 {[%emt 0:01:37]} d3 {[%emt 0:01:00]} 36. cxd3 {[%emt 0:00:28]} cxd3 {[%emt 0:00:31]} 37. Ne7+ {[%emt 0:00:43]} Rxe7 {[%emt 0:00:35]} 38. Rxe5 {[%emt 0:00:09]} d2 {[%emt 0:00:51]} 39. Rd1 {[%emt 0:00:04]} Rc7 {[%emt 0:00:36]} 40. Ra5 {[%emt 0:00:00]} Bb3 {[%emt 0:00:00]} 41. Rf1 {[%emt 0:01:39]} d1=Q {[%emt 0:00:38]} 42. Rxd1 {[%emt 0:00:04]} Bxd1 {[%emt 0:00:11]} 0-1

[Event "EYCC Girls-U18 2019"]
[Site "Bratislava"]
[Date "2019.08.06"]
[Round "5.1"]
[White "Schneider, Jana"]
[Black "Sliwicka, Alicja"]
[Result "0-1"]
[ECO "B42"]
[WhiteElo "2216"]
[BlackElo "2261"]
[Annotator "NA"]
[PlyCount "66"]
[EventDate "2019.08.02"]
[EventType "swiss"]
[EventCountry "SVK"]
[SourceTitle "playchess.com"]
[Source "ChessBase"]
[SourceQuality "1"]
[TimeControl "40/5400+30:1800+30"]

1. e4 {[%emt 0:00:00]} c5 {[%emt 0:00:00]} 2. Nf3 {[%emt 0:00:00]} e6 {[%emt 0:00:00]} 3. d4 {[%emt 0:00:00]} cxd4 {[%emt 0:00:00]} 4. Nxd4 {[%emt 0:00:00]} a6 {[%emt 0:00:00]} 5. Bd3 {[%emt 0:00:06]} Nf6 {[%emt 0:00:03]} 6. O-O {[%emt 0:00:15]} Qc7 {[%emt 0:00:27]} 7. Qe2 {[%emt 0:00:20]} d6 {[%emt 0:00:09]} 8. c4 {[%emt 0:02:58]} g6 {[%emt 0:01:24]} 9. f4 {[%emt 0:02:14]} Bg7 {[%emt 0:01:35]} 10. Be3 {[%emt 0:00:30]} O-O {[%emt 0:00:43]} 11. Nc3 {[%emt 0:01:36]} Nc6 {[%emt 0:04:24]} 12. Nf3 {[%emt 0:09:09]} b6 {[%emt 0:10:59]} 13. Rad1 {[%emt 0:04:37]} Bb7 {[%emt 0:00:51]} 14. Na4 {[%emt 0:05:02]} Nd7 {[%emt 0:01:40]} 15. f5 {[%emt 0:00:44]} Nc5 {[%emt 0:05:27]} 16. Nxc5 {[%emt 0:01:20]} dxc5 {[%emt 0:01:36]} 17. Qf2 {[%emt 0:16:38]} exf5 {[%emt 0:08:46]} 18. exf5 {[%emt 0:00:16]} Rfe8 {[%emt 0:01:19]} 19. Ng5 {[%emt 0:19:04]} Rxe3 {[%emt 0:09:57]} 20. f6 {[%emt 0:00:07]} Re5 {[%emt 0:03:43]} 21. Qh4 {[%emt 0:02:13]} h6 {[%emt 0:12:21]} 22. Nf3 {[%emt 0:05:38]} Rh5 {[%emt 0:01:56]} 23. Qg4 {[%emt 0:01:06]} Bc8 {[%emt 0:01:51]} 24. Qe4 {[%emt 0:00:45]} Bf5 {[%emt 0:00:39]} 25. Qe2 {[%emt 0:03:47]} Bxf6 {[%emt 0:01:45]} 26. Bxf5 {[%emt 0:04:11]} Rxf5 {[%emt 0:00:09]} 27. g4 {[%emt 0:00:06]} Rf4 {[%emt 0:01:13]} 28. Nd2 {[%emt 0:00:29]} Nd4 {[%emt 0:02:47]} 29. Qg2 {[%emt 0:00:13]} Re8 {[%emt 0:01:32]} 30. Rxf4 {[%emt 0:00:25]} Qxf4 {[%emt 0:00:18]} 31. Rf1 {[%emt 0:00:08]} Qe3+ {[%emt 0:01:01]} 32. Kh1 {[%emt 0:00:08]} Bg5 {[%emt 0:01:05]} 33. Qd5 {[%emt 0:00:22]} Qe6 {[%emt 0:00:25]} 0-1

[Event "EYCC Girls-U18 2019"]
[Site "Bratislava"]
[Date "2019.08.06"]
[Round "5.2"]
[White "Ferkova, Dominika"]
[Black "Badelka, Olga"]
[Result "0-1"]
[ECO "E00"]
[WhiteElo "2009"]
[BlackElo "2386"]
[Annotator "NA"]
[PlyCount "184"]
[EventDate "2019.08.02"]
[EventType "swiss"]
[EventCountry "SVK"]
[SourceTitle "playchess.com"]
[Source "ChessBase"]
[SourceQuality "1"]
[TimeControl "40/5400+30:1800+30"]

1. d4 {[%emt 0:00:00]} Nf6 {[%emt 0:00:00]} 2. c4 {[%emt 0:00:00]} e6 {[%emt 0:00:00]} 3. Nc3 {[%emt 0:00:00]} d5 {[%emt 0:00:00]} 4. e3 {[%emt 0:00:56]} a6 {[%emt 0:03:57]} 5. a4 {[%emt 0:08:36]} Bb4 {[%emt 0:02:38]} 6. Nf3 {[%emt 0:09:35]} O-O {[%emt 0:00:19]} 7. Bd3 {[%emt 0:00:25]} c5 {[%emt 0:03:45]} 8. O-O {[%emt 0:01:12]} Nc6 {[%emt 0:00:32]} 9. cxd5 {[%emt 0:11:46]} exd5 {[%emt 0:00:37]} 10. dxc5 {[%emt 0:01:03]} Bg4 {[%emt 0:02:56]} 11. Be2 {[%emt 0:03:51]} Bxc5 {[%emt 0:06:40]} 12. Nd4 {[%emt 0:10:35]} Bxe2 {[%emt 0:05:38]} 13. Ncxe2 {[%emt 0:00:30]} Ne4 {[%emt 0:02:06]} 14. b3 {[%emt 0:04:39]} Nxd4 {[%emt 0:01:26]} 15. Nxd4 {[%emt 0:01:49]} Nc3 {[%emt 0:01:15]} 16. Qd3 {[%emt 0:03:07]} Bxd4 {[%emt 0:00:11]} 17. exd4 {[%emt 0:00:24]} Rc8 {[%emt 0:00:52]} 18. f3 {[%emt 0:09:24]} Re8 {[%emt 0:04:10]} 19. Be3 {[%emt 0:04:41]} b5 {[%emt 0:00:42]} 20. Rac1 {[%emt 0:01:32]} b4 {[%emt 0:01:31]} 21. Rfe1 {[%emt 0:01:24]} Re6 {[%emt 0:05:38]} 22. Bd2 {[%emt 0:03:16]} Rec6 {[%emt 0:02:04]} 23. Ra1 {[%emt 0:01:09]} Qd7 {[%emt 0:13:56]} 24. Re5 {[%emt 0:03:35]} f6 {[%emt 0:02:43]} 25. Re3 {[%emt 0:00:55]} Re8 {[%emt 0:01:20]} 26. Rxe8+ {[%emt 0:01:32]} Qxe8 {[%emt 0:00:04]} 27. Kf1 {[%emt 0:01:20]} Qb8 {[%emt 0:07:32]} 28. h3 {[%emt 0:05:22]} Qc8 {[%emt 0:03:04]} 29. Rc1 {[%emt 0:02:15]} h6 {[%emt 0:15:00]} 30. g4 {[%emt 0:03:26]} Kf7 {[%emt 0:02:12]} 31. Qf5 {[%emt 0:02:26]} Qd8 {[%emt 0:04:44]} 32. Qh7 {[%emt 0:01:42]} f5 {[%emt 0:02:29]} 33. Qxf5+ {[%emt 0:00:09]} Rf6 {[%emt 0:00:04]} 34. Qd3 {[%emt 0:00:12]} Ne4 {[%emt 0:00:32]} 35. Kg2 {[%emt 0:00:25]} Nxd2 {[%emt 0:02:47]} 36. Qxd2 {[%emt 0:00:02]} Qe7 {[%emt 0:02:04]} 37. Re1 {[%emt 0:01:10]} Qd6 {[%emt 0:00:21]} 38. Re5 {[%emt 0:00:40]} Qc6 {[%emt 0:02:10]} 39. Re1 {[%emt 0:03:44]} a5 {[%emt 0:00:50]} 40. Rc1 {[%emt 0:00:00]} Qe8 {[%emt 0:00:00]} 41. Rc5 {[%emt 0:14:04]} Re6 {[%emt 0:01:56]} 42. Qf4+ {[%emt 0:07:40]} Kg8 {[%emt 0:00:08]} 43. Kg3 {[%emt 0:07:04]} h5 {[%emt 0:13:22]} 44. g5 {[%emt 0:03:33]} Rc6 {[%emt 0:00:07]} 45. Qc1 {[%emt 0:00:21]} Rxc5 {[%emt 0:00:19]} 46. Qxc5 {[%emt 0:00:03]} Qe1+ {[%emt 0:01:01]} 47. Kf4 {[%emt 0:00:26]} Qh4+ {[%emt 0:00:30]} 48. Ke5 {[%emt 0:01:15]} Qxg5+ {[%emt 0:00:05]} 49. Kd6 {[%emt 0:00:34]} Qf6+ {[%emt 0:01:24]} 50. Kxd5 {[%emt 0:00:02]} Qxf3+ {[%emt 0:01:18]} 51. Kd6 {[%emt 0:00:23]} Qxb3 {[%emt 0:01:57]} 52. Qxa5 {[%emt 0:00:22]} Qg3+ {[%emt 0:03:33]} 53. Kc6 {[%emt 0:00:43]} Qg6+ {[%emt 0:03:52]} 54. Kb7 {[%emt 0:00:46]} b3 {[%emt 0:01:34]} 55. Qb5 {[%emt 0:00:07]} Qf7+ {[%emt 0:03:53]} 56. Kb6 {[%emt 0:00:10]} Qe6+ {[%emt 0:00:22]} 57. Kb7 {[%emt 0:00:22]} Qe7+ {[%emt 0:00:51]} 58. Kb6 {[%emt 0:00:15]} Qe3 {[%emt 0:02:28]} 59. Kb7 {[%emt 0:00:31]} Qe4+ {[%emt 0:01:28]} 60. Kb8 {[%emt 0:00:31]} Qf4+ {[%emt 0:00:30]} 61. Kb7 {[%emt 0:00:14]} Qe4+ {[%emt 0:00:29]} 62. Kb8 {[%emt 0:00:06]} Qf4+ {[%emt 0:00:26]} 63. Kb7 {[%emt 0:00:08]} Qf7+ {[%emt 0:00:11]} 64. Kb8 {[%emt 0:01:11]} Qf8+ {[%emt 0:00:17]} 65. Kb7 {[%emt 0:00:06]} Qe7+ {[%emt 0:00:19]} 66. Kb6 {[%emt 0:00:28]} Qe6+ {[%emt 0:00:48]} 67. Kb7 {[%emt 0:00:12]} Qxh3 {[%emt 0:01:00]} 68. d5 {[%emt 0:00:44]} b2 {[%emt 0:00:31]} 69. a5 {[%emt 0:02:02]} Qf5 {[%emt 0:00:13]} 70. Qxb2 {[%emt 0:00:26]} Qxd5+ {[%emt 0:00:01]} 71. Kb6 {[%emt 0:00:21]} Qd8+ {[%emt 0:00:34]} 72. Kb7 {[%emt 0:01:05]} Qxa5 {[%emt 0:00:09]} 73. Qb3+ {[%emt 0:00:07]} Kh7 {[%emt 0:00:45]} 74. Qd3+ {[%emt 0:00:01]} g6 {[%emt 0:00:32]} 75. Qd7+ {[%emt 0:00:25]} Kh6 {[%emt 0:00:05]} 76. Qe7 {[%emt 0:00:21]} Qd5+ {[%emt 0:00:19]} 77. Kc7 {[%emt 0:00:17]} Qc4+ {[%emt 0:00:11]} 78. Kb7 {[%emt 0:00:11]} h4 {[%emt 0:00:57]} 79. Qf8+ {[%emt 0:00:23]} Kh5 {[%emt 0:00:20]} 80. Qf3+ {[%emt 0:00:28]} Qg4 {[%emt 0:00:09]} 81. Qd5+ {[%emt 0:00:25]} Qf5 {[%emt 0:00:14]} 82. Qd1+ {[%emt 0:00:02]} Kh6 {[%emt 0:00:26]} 83. Qd2+ {[%emt 0:00:11]} Qg5 {[%emt 0:00:38]} 84. Qd4 {[%emt 0:00:53]} Qg2+ {[%emt 0:01:13]} 85. Kb6 {[%emt 0:00:26]} g5 {[%emt 0:01:41]} 86. Qh8+ {[%emt 0:01:26]} Kg6 {[%emt 0:00:03]} 87. Qe8+ {[%emt 0:00:20]} Kf5 {[%emt 0:00:10]} 88. Qd7+ {[%emt 0:00:20]} Kf4 {[%emt 0:00:08]} 89. Qf7+ {[%emt 0:00:05]} Kg3 {[%emt 0:00:29]} 90. Qc7+ {[%emt 0:00:14]} Kh3 {[%emt 0:00:20]} 91. Qd7+ {[%emt 0:00:03]} g4 {[%emt 0:00:13]} 92. Qd3+ {[%emt 0:00:03]} Qf3 {[%emt 0:00:17]} 0-1